bitfinex-derivatives/quotes_BNBF0:USTF0_20250904
["timestamp","ask_amount","ask_price","bid_price","bid_amount"]
[1756967519101,0.7932959,847.52,846.77,0.79270011]
[1756967519398,0.7932959,847.51,846.77,0.79270011]
[1756967519597,0.7932959,847.49,846.75,0.79270011]
[1756967520603,0.7932959,847.5,846.75,0.79270011]
[1756967521604,0.7932959,847.49,846.76,0.79270011]
[1756967522204,0.7932959,847.46,846.78,0.79270011]
[1756967522404,0.7932959,847.46,846.79,0.79270011]
[1756967523805,0.7932959,847.44,846.8,0.79270011]
[1756967525406,0.7932959,847.43,846.81,0.79270011]
[1756967526307,2.6395096,848.25,846.53,1.5852815]
[1756967526308,0.7932959,847.42,846.8,0.79270011]
[1756967527706,0.7932959,847.44,846.78,0.79270011]
[1756967529607,0.7932959,847.46,846.8,0.79270011]
[1756967530407,0.7932959,847.45,846.81,0.79270011]
[1756967530911,0.7932959,847.45,846.8,0.79270011]
[1756967531315,0.7932959,847.51,846.77,0.79270011]
[1756967531809,0.7932959,847.51,846.76,0.79270011]
[1756967534709,0.7932959,847.57,846.73,0.79270011]
[1756967535312,0.7932959,847.57,846.72,0.79270011]
[1756967537617,0.7932959,847.56,846.73,0.79270011]
[1756967538110,0.7932959,847.57,846.73,0.79270011]
[1756967538311,0.7932959,847.57,846.72,0.79270011]
[1756967541320,0.7932959,847.55,846.73,0.79270011]
[1756967542820,0.7932959,847.57,846.72,0.79270011]
[1756967544621,0.7932959,847.55,846.73,0.79270011]
[1756967545518,0.7932959,847.55,846.72,0.79270011]
[1756967546720,0.7932959,847.56,846.72,0.79270011]
[1756967547321,0.7932959,847.54,846.73,0.79270011]
[1756967547519,0.7932959,847.55,846.73,0.79270011]
[1756967548821,0.7932959,847.54,846.73,0.79270011]
[1756967549319,0.7932959,847.55,846.73,0.79270011]
[1756967549718,0.7932959,847.54,846.73,0.79270011]
[1756967550922,0.7932959,847.55,846.73,0.79270011]
[1756967551720,0.7932959,847.52,846.75,0.79270011]
[1756967552520,0.7932959,847.51,846.74,0.79270011]
[1756967552724,0.7932959,847.5,846.71,0.79270011]
[1756967552924,0.7932959,847.49,846.69,0.79270011]
[1756967554322,0.7932959,847.48,846.69,0.79270011]
[1756967555226,0.7932959,847.48,846.7,0.79270011]
[1756967556523,0.7932959,847.49,846.69,0.79270011]
[1756967556927,0.7932959,847.5,846.69,0.79270011]
[1756967557127,0.7932959,847.5,846.7,0.79270011]
[1756967558125,0.7932959,847.49,846.7,0.79270011]
[1756967558326,0.7932959,847.51,846.7,0.79270011]
[1756967559328,0.7932959,847.5,846.7,0.79270011]
[1756967560328,0.7932959,847.49,846.7,0.79270011]
[1756967560731,0.7932959,847.5,846.7,0.79270011]
[1756967561331,0.7932959,847.49,846.69,0.79270011]
[1756967562428,0.7932959,847.48,846.7,0.79270011]
[1756967562633,0.7932959,847.46,846.71,0.79270011]
[1756967563332,0.7932959,847.46,846.72,0.79270011]
[1756967565336,0.7932959,847.45,846.73,0.79270011]
[1756967566135,0.7932959,847.43,846.74,0.79270011]
[1756967566730,0.7932959,847.47,846.73,0.79270011]
[1756967567129,0.7932959,847.46,846.73,0.79270011]
[1756967568331,0.7932959,847.44,846.75,0.79270011]
[1756967569735,0.7932959,847.44,846.76,0.79270011]
[1756967570332,0.7932959,847.45,846.76,0.79270011]
[1756967570630,0.7932959,847.44,846.76,0.79270011]
[1756967571332,0.7932959,847.45,846.76,0.79270011]
[1756967571732,0.7932959,847.44,846.76,0.79270011]
[1756967573332,0.7932959,847.43,846.77,0.79270011]
[1756967574535,0.7932959,847.44,846.76,0.79270011]
[1756967575235,0.7932959,847.45,846.76,0.79270011]
[1756967576735,0.7932959,847.43,846.77,0.79270011]
[1756967578332,0.7932959,847.42,846.78,0.79270011]
[1756967578533,2.6395096,848.66,846.81,0.79270011]
[1756967578534,0.7932959,847.41,846.81,0.79270011]
[1756967578738,0.7932959,847.42,846.87,0.79270011]
[1756967581834,0.7932959,847.41,846.87,0.79270011]
[1756967582739,0.20538425,847.28,846.87,0.79270011]
[1756967590438,0.20538425,847.28,846.88,0.79270011]
[1756967590640,0.20538425,847.28,846.87,0.79270011]
[1756967591139,0.20538425,847.28,846.88,0.79270011]
[1756967591341,0.20538425,847.28,846.84,0.79270011]
[1756967591844,0.20538425,847.28,846.85,0.79270011]
[1756967600751,0.20538425,847.28,846.86,0.79270011]
[1756967601250,0.20538425,847.28,846.89,0.79270011]
[1756967603351,0.20538425,847.28,846.88,0.79270011]
[1756967603551,0.20538425,847.28,846.89,0.79270011]
[1756967611164,0.20538425,847.28,846.9,0.79270011]
[1756967611364,0.20538425,847.28,846.85,0.79270011]
[1756967612061,0.20538425,847.28,846.86,0.79270011]
[1756967612363,0.20538425,847.28,846.85,0.79270011]
[1756967615163,0.20538425,847.28,846.86,0.79270011]
[1756967615366,0.20538425,847.28,846.85,0.79270011]
[1756967615961,0.20538425,847.28,846.86,0.79270011]
[1756967621170,0.20538425,847.28,846.88,0.79270011]
[1756967621469,0.20538425,847.28,846.89,0.79270011]
[1756967622172,0.20538425,847.28,846.9,0.79270011]
[1756967626175,0.20538425,847.28,846.91,0.79270011]
[1756967627779,0.20538425,847.28,846.9,0.79270011]
[1756967628177,0.20538425,847.28,846.91,0.79270011]
[1756967629186,0.20538425,847.28,846.9,0.79270011]
[1756967630782,0.20538425,847.28,846.91,0.79270011]
[1756967631379,0.20538425,847.28,846.92,0.79270011]
[1756967634583,0.20538425,847.28,846.93,0.79270011]
[1756967635186,0.20538425,847.28,846.79,1.0568543]
[1756967635386,0.20538425,847.28,846.93,0.79535851]
[1756967637283,0.20538425,847.28,846.94,0.79535851]
[1756967642390,0.20538425,847.28,846.95,0.79535851]
[1756967645389,0.20538425,847.28,846.94,0.79535851]
[1756967645794,0.20538425,847.28,846.95,0.79535851]
[1756967645991,0.20538425,847.28,846.94,0.79535851]
[1756967648896,0.20538425,847.28,846.93,0.79535851]
[1756967649591,0.20538425,847.28,846.91,0.79535851]
[1756967649791,0.20538425,847.28,846.86,0.79535851]
[1756967649991,0.20538425,847.28,846.85,0.79535851]
[1756967650192,0.20538425,847.28,846.84,0.79535851]
[1756967650596,0.79651797,847.27,846.8,0.79535851]
[1756967650795,0.20538425,847.28,846.67,0.79535851]
[1756967651095,0.20538425,847.28,846.65,0.79535851]
[1756967652192,0.20538425,847.28,846.64,0.79535851]
[1756967652895,0.20538425,847.28,846.63,0.79535851]
[1756967653098,0.20538425,847.28,846.6,0.79535851]
[1756967653295,0.20538425,847.28,846.59,0.79535851]
[1756967654194,0.20538425,847.28,846.58,0.79535851]
[1756967656200,0.20538425,847.28,846.57,0.79535851]
[1756967656501,0.20538425,847.28,846.58,0.79535851]
[1756967656697,0.20538425,847.28,846.63,0.79535851]
[1756967656903,0.20538425,847.28,846.64,0.79535851]
[1756967657401,0.20538425,847.28,846.65,0.79535851]
[1756967659707,0.20538425,847.28,846.64,0.79535851]
[1756967662406,0.20538425,847.28,846.66,0.79535851]
[1756967663012,0.20538425,847.28,846.68,0.79535851]
[1756967666609,0.20538425,847.28,846.49,1.0568543]
[1756967666610,0.20538425,847.28,846.71,0.79535851]
[1756967667915,0.20538425,847.28,846.72,0.79535851]
[1756967673415,0.20538425,847.28,846.73,0.79535851]
[1756967676616,0.20538425,847.28,846.72,0.79535851]
[1756967677116,0.20538425,847.28,846.73,0.79535851]
[1756967678124,0.20538425,847.28,846.71,0.79535851]
[1756967678321,0.20538425,847.28,845.99,0.20538425]
[1756967678322,0.20538425,847.28,846.7,0.79535851]
[1756967678724,0.20538425,847.28,846.69,0.79535851]
[1756967679526,0.20538425,847.28,846.68,0.79535851]
[1756967680021,0.20538425,847.28,846.69,0.79535851]
[1756967680226,0.20538425,847.28,846.64,0.79535851]
[1756967682236,0.20538425,847.28,846.65,0.79535851]
[1756967684136,0.20538425,847.28,846.66,0.79535851]
[1756967684934,0.20538425,847.28,846.73,0.79535851]
[1756967686939,0.20538425,847.28,846.78,0.79535851]
[1756967687136,0.20538425,847.28,846.82,0.79535851]
[1756967687635,0.20538425,847.28,846.81,0.79535851]
[1756967690844,0.79651797,847.55,846.82,0.79535851]
[1756967691140,0.20535759,847.41,846.84,0.79535851]
[1756967691739,0.20535759,847.41,846.9,0.79535851]
[1756967691944,0.20535759,847.41,846.93,0.79535851]
[1756967692140,0.20535759,847.41,846.92,0.79535851]
[1756967693241,0.20535759,847.41,846.91,0.79535851]
[1756967693445,0.20535759,847.41,846.93,0.79535851]
[1756967693740,0.20535759,847.41,846.73,1.0568543]
[1756967693741,0.20535759,847.41,846.96,0.79535851]
[1756967694241,0.20535759,847.41,846.95,0.79535851]
[1756967694745,0.79651797,847.76,846.95,0.79535851]
[1756967695141,0.20531943,847.53,846.94,0.79535851]
[1756967696144,0.20531943,847.53,846.93,0.79535851]
[1756967697042,0.20531943,847.53,846.94,0.79535851]
[1756967697241,0.20531943,847.53,846.93,0.79535851]
[1756967698146,0.20531943,847.53,846.92,0.79535851]
[1756967698339,0.20531943,847.53,846.9,0.79535851]
[1756967699141,0.20531943,847.53,846.89,0.79535851]
[1756967699541,0.20531943,847.53,846.94,0.79535851]
[1756967701248,0.20531943,847.53,846.95,0.79535851]
[1756967701448,0.20531943,847.53,846.94,0.79535851]
[1756967703349,0.20531943,847.53,846.93,0.79535851]
[1756967704446,0.20531943,847.53,846.92,0.79535851]
[1756967704847,0.20531943,847.53,846.72,1.0568543]
[1756967704848,0.20531943,847.53,846.91,0.79535851]
[1756967706348,0.20531943,847.53,846.9,0.79535851]
[1756967707552,0.20531943,847.53,846.89,0.79535851]
[1756967708054,0.20531943,847.53,846.95,0.79535851]
[1756967708353,0.20531943,847.53,846.93,0.79535851]
[1756967708850,0.20531943,847.53,846.94,0.79535851]
[1756967709055,0.20531943,847.53,846.95,0.79535851]
[1756967709354,0.20531943,847.53,846.94,0.79535851]
[1756967709855,0.20531943,847.53,846.95,0.79535851]
[1756967711456,0.20531943,847.53,846.94,0.79535851]
[1756967713258,0.79651797,847.89,846.97,0.79535851]
[1756967713462,0.20529762,847.67,847.02,0.79535851]
[1756967714254,0.20529762,847.67,847.03,0.79535851]
[1756967714557,0.20529762,847.67,847.02,0.79535851]
[1756967715254,0.20529762,847.67,847.01,0.79535851]
[1756967715856,0.20529762,847.67,847.0,0.79535851]
[1756967718460,0.20529762,847.67,846.99,0.79535851]
[1756967720566,0.20529762,847.67,847.0,0.79535851]
[1756967720766,0.20529762,847.67,847.0,0.78980423]
[1756967723966,0.20529762,847.67,846.99,0.78980423]
[1756967725071,0.20529762,847.67,847.0,0.78980423]
[1756967725969,0.20529762,847.67,847.01,0.78980423]
[1756967728472,0.20529762,847.67,846.85,1.0568543]
[1756967728473,0.20529762,847.67,847.02,0.78980423]
[1756967731676,0.20529762,847.67,846.91,0.78980423]
[1756967731877,0.20529762,847.67,846.81,0.78980423]
[1756967732273,0.20529762,847.67,846.82,0.78980423]
[1756967732777,0.20529762,847.67,846.78,0.78980423]
[1756967734280,0.20529762,847.67,846.79,0.78980423]
[1756967734475,0.20529762,847.67,846.78,0.78980423]
[1756967734974,0.20529762,847.67,846.81,0.78980423]
[1756967735275,0.20529762,847.67,846.83,0.78980423]
[1756967736278,0.20529762,847.67,846.84,0.78980423]
[1756967737180,0.20529762,847.67,846.85,0.78980423]
[1756967738581,0.20529762,847.67,846.82,0.78980423]
[1756967739181,0.20529762,847.67,846.83,0.78980423]
[1756967739382,0.20529762,847.67,846.82,0.78980423]
[1756967739977,0.20529762,847.67,846.8,0.78980423]
[1756967740183,0.20529762,847.67,846.82,0.78980423]
[1756967741483,0.20529762,847.67,846.83,0.78980423]
[1756967742379,0.79150108,847.66,846.83,0.78980423]
[1756967742583,0.79150108,847.66,846.81,0.78980423]
[1756967742979,0.79150108,847.63,846.78,0.78980423]
[1756967743183,0.79150108,847.63,846.45,1.5852815]
[1756967743184,0.79150108,847.62,846.79,0.78980423]
[1756967743383,0.79150108,847.63,846.79,0.78980423]
[1756967743580,0.79150108,847.63,846.78,0.78980423]
[1756967744092,0.79150108,847.62,846.79,0.78980423]
[1756967745182,0.79150108,847.64,846.78,0.78980423]
[1756967746185,0.79150108,847.63,846.79,0.78980423]
[1756967748086,0.79150108,847.62,846.79,0.78980423]
[1756967748287,0.79150108,847.63,846.79,0.78980423]
[1756967749188,0.79150108,847.62,846.8,0.78980423]
[1756967749389,0.79150108,847.61,846.8,0.78980423]
[1756967749688,0.79150108,847.58,846.78,0.78980423]
[1756967749888,0.79150108,847.48,846.7,0.78980423]
[1756967750291,1.0598989,847.64,846.7,0.78980423]
[1756967750292,0.79150108,847.47,846.7,0.78980423]
[1756967750492,0.79150108,847.49,846.69,0.78980423]
[1756967751091,0.79150108,847.51,846.66,0.78980423]
[1756967751288,0.79150108,847.51,846.67,0.78980423]
[1756967751594,0.79150108,847.51,846.66,0.78980423]
[1756967751896,0.79150108,847.52,846.65,0.78980423]
[1756967752392,0.79150108,847.53,846.65,0.78980423]
[1756967753392,0.79150108,847.54,846.64,0.78980423]
[1756967754495,0.79150108,847.54,846.63,0.78980423]
[1756967755395,0.79150108,847.55,846.63,0.78980423]
[1756967756199,0.79150108,847.55,846.62,0.78980423]
[1756967757301,0.79150108,847.56,846.62,0.78980423]
[1756967757601,0.20529762,847.67,846.62,0.78980423]
[1756967757602,0.79150108,847.54,846.62,0.78980423]
[1756967758202,0.79150108,847.55,846.62,0.78980423]
[1756967758798,0.79150108,847.58,846.6,0.78980423]
[1756967759301,0.79150108,847.59,846.59,0.78980423]
[1756967759800,0.79150108,847.6,846.58,0.78980423]
[1756967760097,0.79150108,847.6,846.59,0.78980423]
[1756967760802,0.79150108,847.58,846.6,0.78980423]
[1756967761600,0.79150108,847.61,846.58,0.78980423]
[1756967761804,0.79150108,847.6,846.58,0.78980423]
[1756967762405,0.79150108,847.61,846.58,0.78980423]
[1756967763406,0.79150108,847.62,846.57,0.78980423]
[1756967764203,0.79150108,847.61,846.57,0.78980423]
[1756967764405,0.79150108,847.62,846.57,0.78980423]
[1756967766406,0.79150108,847.62,846.56,0.78980423]
[1756967766605,0.79150108,847.65,846.55,0.78980423]
[1756967767605,0.20529762,847.67,846.74,0.78980423]
[1756967767804,0.20529762,847.67,846.73,0.78980423]
[1756967775310,0.20529762,847.67,846.74,0.78980423]
[1756967776710,0.20529762,847.67,846.75,0.78980423]
[1756967777415,0.20529762,847.67,846.84,0.78980423]
[1756967778113,0.20529762,847.67,846.8,0.78980423]
[1756967778317,0.20529762,847.67,846.81,0.78980423]
[1756967780816,0.79150108,847.75,846.81,0.78980423]
[1756967781218,0.79150108,847.75,846.82,0.78980423]
[1756967782417,0.79150108,847.74,846.82,0.78980423]
[1756967783118,0.79150108,847.74,846.83,0.78980423]
[1756967783321,0.79150108,847.73,846.83,0.78980423]
[1756967784120,0.20534547,847.51,846.83,0.78980423]
[1756967784325,0.20534547,847.51,846.84,0.78980423]
[1756967784625,0.20534547,847.51,846.85,0.78980423]
[1756967785525,0.20534547,847.51,846.86,0.78980423]
[1756967786022,0.20534547,847.51,846.85,0.78980423]
[1756967786426,0.20534547,847.51,846.86,0.78980423]
[1756967786722,0.20534547,847.51,846.84,0.78980423]
[1756967787924,0.20534547,847.51,846.85,0.78980423]
[1756967788322,0.20534547,847.51,846.86,0.78980423]
[1756967789326,0.20534547,847.51,846.87,0.78980423]
[1756967790322,0.20534547,847.51,846.88,0.78980423]
[1756967791328,0.20534547,847.51,846.89,0.78980423]
[1756967792629,0.20534547,847.51,846.91,0.78980423]
[1756967795329,0.20534547,847.51,846.92,0.78980423]
[1756967795527,0.20534547,847.51,846.91,0.78980423]
[1756967795725,0.20534547,847.51,846.92,0.78980423]
[1756967796229,0.20534547,847.51,846.93,0.78980423]
[1756967796530,0.20534547,847.51,846.95,0.78980423]
[1756967797830,0.20534547,847.51,846.96,0.78980423]
[1756967798431,0.20534547,847.51,846.97,0.78980423]
[1756967799431,0.20534547,847.51,846.96,0.78980423]
[1756967802326,0.20534547,847.51,846.95,0.78980423]
[1756967806437,0.20534547,847.51,846.93,0.78980423]
[1756967807334,0.20534547,847.51,846.19,0.20534547]
[1756967807335,0.20534547,847.51,846.94,0.78980423]
[1756967808139,0.20534547,847.51,846.93,0.78980423]
[1756967812437,0.20534547,847.51,846.94,0.78980423]
[1756967814641,0.20534547,847.51,846.95,0.78980423]
[1756967816340,0.20534547,847.51,846.98,0.78980423]
[1756967818442,0.20534547,847.51,846.99,0.78980423]
[1756967819547,0.20534547,847.51,847.0,0.78980423]
[1756967822450,0.20534547,847.51,847.01,0.78980423]
[1756967823254,0.20534547,847.51,846.87,1.0568543]
[1756967823255,0.20534547,847.51,847.02,0.78980423]
[1756967823452,0.20534547,847.51,847.01,0.78980423]
[1756967824355,0.20534547,847.51,846.19,0.20534547]
[1756967824356,0.20534547,847.51,847.02,0.78980423]
[1756967825457,0.20534547,847.51,847.03,0.78980423]
[1756967826256,0.20534547,847.51,847.04,0.78980423]
[1756967826557,0.20534547,847.51,847.05,0.78980423]
[1756967827357,0.20534547,847.51,847.08,0.78980423]
[1756967828152,0.20534547,847.51,847.09,0.78980423]
[1756967829753,0.20534547,847.51,846.94,1.0568543]
[1756967829754,0.20534547,847.51,847.08,0.78980423]
[1756967830357,0.20534547,847.51,847.04,0.78980423]
[1756967834766,0.20534547,847.51,847.03,0.78980423]
[1756967837967,0.20534547,847.51,847.02,0.78980423]
[1756967838266,0.20534547,847.51,847.05,0.78980423]
[1756967839567,0.20534547,847.51,847.06,0.78980423]
[1756967841269,0.79150108,847.48,846.97,0.78980423]
[1756967841471,0.79150108,847.47,846.98,0.78980423]
[1756967841969,0.79150108,847.48,846.98,0.78980423]
[1756967842366,0.79150108,847.49,846.97,0.78980423]
[1756967843168,0.79150108,847.49,846.96,0.78980423]
[1756967843366,0.79150108,847.5,846.96,0.78980423]
[1756967843566,0.79150108,847.49,846.96,0.78980423]
[1756967844166,0.79150108,847.48,846.97,0.78980423]
[1756967844365,0.99684655,847.51,846.94,0.78980423]
[1756967844667,0.99684655,847.51,846.95,0.78980423]
[1756967846971,0.20534547,847.51,846.95,0.78980423]
[1756967847175,1.00151657,847.51,846.95,0.79531973]
[1756967848374,1.00151657,847.51,846.94,0.79531973]
[1756967849273,0.20534547,847.51,846.94,0.79531973]
[1756967849777,1.00151657,847.51,846.94,0.79531973]
[1756967850278,0.20534547,847.51,846.94,0.79531973]
[1756967851580,1.00151657,847.51,846.94,0.79531973]
[1756967851781,0.20534547,847.51,846.91,0.79531973]
[1756967854081,0.20534547,847.51,846.92,0.79531973]
[1756967857287,0.20534547,847.51,846.91,0.79531973]
[1756967858387,0.20534547,847.51,846.9,0.79531973]
[1756967859889,0.20534547,847.51,846.89,0.79531973]
[1756967861690,0.20534547,847.51,846.91,0.79531973]
[1756967863285,0.20534547,847.51,846.9,0.79531973]
[1756967866789,0.20534547,847.51,846.91,0.79531973]
[1756967868092,0.7961711,847.49,846.94,0.79531973]
[1756967869088,0.20534547,847.51,846.68,0.79531973]
[1756967871388,0.20534547,847.51,846.67,0.79531973]
[1756967874195,0.20534547,847.51,846.68,0.79531973]
[1756967874495,0.20534547,847.51,846.66,0.79531973]
[1756967875995,0.20534547,847.51,846.67,0.79531973]
[1756967877598,0.20534547,847.51,846.68,0.79531973]
[1756967878896,0.20534547,847.51,846.75,0.79531973]
[1756967879797,0.20534547,847.51,846.76,0.79531973]
[1756967881202,0.7961711,847.49,846.74,0.79531973]
[1756967881500,0.7961711,847.48,846.75,0.79531973]
[1756967882398,0.7961711,847.43,846.75,0.79531973]
[1756967882597,0.7961711,847.42,846.74,0.79531973]
[1756967883297,0.7961711,847.42,846.73,0.79531973]
[1756967884000,0.7961711,847.39,846.75,0.79531973]
[1756967884404,0.7961711,847.39,846.74,0.79531973]
[1756967884606,0.7961711,847.42,846.72,0.79531973]
[1756967885807,0.20534547,847.51,846.56,1.0568543]
[1756967885808,0.7961711,847.41,846.73,0.79531973]
[1756967886309,0.7961711,847.41,846.72,0.79531973]
[1756967886607,0.7961711,847.41,846.73,0.79531973]
[1756967886905,0.7961711,847.41,846.72,0.79531973]
[1756967887408,0.7961711,847.44,846.71,0.79531973]
[1756967889309,0.7961711,847.44,846.7,0.79531973]
[1756967889608,0.7961711,847.44,846.71,0.79531973]
[1756967889811,0.7961711,847.45,846.72,0.79531973]
[1756967890207,0.7961711,847.49,846.72,0.79531973]
[1756967890409,0.7961711,847.5,846.72,0.79531973]
[1756967891215,1.00151657,847.51,846.72,0.79531973]
[1756967891911,0.7961711,847.49,846.73,0.79531973]
[1756967892214,0.7961711,847.5,846.74,0.79531973]
[1756967892414,0.20534547,847.51,846.77,0.79531973]
[1756967893412,0.20534547,847.51,846.86,0.79531973]
[1756967894918,0.20534547,847.51,846.87,0.79531973]
[1756967896413,0.20534547,847.51,846.88,0.79531973]
[1756967896818,0.20534547,847.51,846.96,0.79531973]
[1756967897118,0.20534547,847.51,846.94,0.79531973]
[1756967897517,0.20534547,847.51,846.97,0.79531973]
[1756967897717,0.20534547,847.51,846.99,0.79531973]
[1756967898018,0.20534547,847.51,847.0,0.79531973]
[1756967899317,0.20534547,847.51,847.06,0.79531973]
[1756967899720,0.20534547,847.51,847.07,0.79531973]
[1756967900018,0.20534547,847.51,847.06,0.79531973]
[1756967900516,0.20534547,847.51,846.19,0.20534547]
[1756967900517,0.20534547,847.51,847.05,0.79531973]
[1756967901323,0.20534547,847.51,847.04,0.79531973]
[1756967903022,0.20534547,847.51,847.05,0.79531973]
[1756967903523,0.20534547,847.51,847.04,0.79531973]
[1756967903824,0.7961711,847.77,847.04,0.79531973]
[1756967904123,0.20529762,847.68,847.05,0.79531973]
[1756967904322,0.20529762,847.68,847.04,0.79531973]
[1756967905222,0.20529762,847.68,847.05,0.79531973]
[1756967905425,0.20529762,847.68,847.04,0.79531973]
[1756967906322,0.20529762,847.68,847.03,0.79531973]
[1756967907723,0.20529762,847.68,846.19,0.20534547]
[1756967907724,0.20529762,847.68,847.04,0.79531973]
[1756967907924,0.20529762,847.68,847.06,0.79531973]
[1756967908424,0.20529762,847.68,847.05,0.79531973]
[1756967909520,0.20529762,847.68,847.1,0.79531973]
[1756967910125,0.20529762,847.68,847.12,0.79531973]
[1756967910326,0.20529762,847.68,846.19,0.20534547]
[1756967910327,0.20529762,847.68,847.11,0.79531973]
[1756967910826,0.7961711,848.01,847.13,0.79531973]
[1756967911023,0.20525827,847.85,847.13,0.79531973]
[1756967911324,0.20525827,847.85,847.12,0.79531973]
[1756967912525,0.20525827,847.85,847.11,0.79531973]
[1756967912729,0.20525827,847.85,847.13,0.79531973]
[1756967914430,0.20525827,847.85,847.12,0.79531973]
[1756967915930,0.20525827,847.85,847.11,0.79531973]
[1756967916533,0.20525827,847.85,847.1,0.79531973]
[1756967917836,0.20525827,847.85,847.15,0.79531973]
[1756967918132,0.20525827,847.85,847.16,0.79531973]
[1756967918432,0.20525827,847.85,847.15,0.79531973]
[1756967920037,0.20525827,847.85,847.16,0.79531973]
[1756967920337,0.20525827,847.85,847.15,0.79531973]
[1756967920531,0.20525827,847.85,847.16,0.79531973]
[1756967921439,0.20525827,847.85,847.15,0.79531973]
[1756967922236,0.20525827,847.85,847.18,0.79531973]
[1756967923340,0.20525827,847.85,847.17,0.79531973]
[1756967923641,0.7961711,848.3,847.17,0.79531973]
[1756967923942,0.20521953,847.98,847.21,0.79531973]
[1756967924335,0.20521953,847.98,847.19,0.79531973]
[1756967924837,0.20521953,847.98,847.18,0.79531973]
[1756967925939,0.20521953,847.98,847.17,0.79531973]
[1756967926337,0.20521953,847.98,847.16,0.79531973]
[1756967926643,0.20521953,847.98,847.23,0.79531973]
[1756967926842,0.20521953,847.98,847.24,0.79531973]
[1756967927438,0.20521953,847.98,847.23,0.79531973]
[1756967928339,0.20521953,847.98,847.22,0.79531973]
[1756967928743,0.20521953,847.98,847.25,0.79531973]
[1756967930044,0.20521953,847.98,847.26,0.79531973]
[1756967930545,0.20521953,847.98,847.25,0.79531973]
[1756967931943,0.20521953,847.98,847.26,0.79531973]
[1756967932348,0.20521953,847.98,847.25,0.79531973]
[1756967934045,0.20521953,847.98,847.26,0.79531973]
[1756967934850,0.20521953,847.98,846.19,0.20534547]
[1756967934851,0.20521953,847.98,847.27,0.79531973]
[1756967935645,0.20521953,847.98,847.26,0.79531973]
[1756967938058,0.20521953,847.98,847.25,0.79531973]
[1756967939857,0.20521953,847.98,847.26,0.79531973]
[1756967940058,0.7961711,848.51,847.26,0.79531973]
[1756967940353,0.20519231,848.05,847.25,0.79531973]
[1756967940560,0.7961711,848.51,847.25,0.79531973]
[1756967940755,0.20519291,848.05,847.25,0.79531973]
[1756967941059,0.7961711,848.51,847.25,0.79531973]
[1756967941759,0.7961711,848.51,847.1,1.0568543]
[1756967941760,0.7961711,848.51,847.26,0.79531973]
[1756967942356,0.20519231,848.2,847.26,0.79531973]
[1756967943965,0.20519231,848.2,847.27,0.79531973]
[1756967944165,0.20519231,848.2,847.26,0.79531973]
[1756967944465,0.20519231,848.2,847.27,0.79531973]
[1756967945267,0.20519231,848.2,847.28,0.79531973]
[1756967947663,0.20519231,848.2,847.29,0.79531973]
[1756967948067,0.20519231,848.2,847.23,0.79531973]
[1756967948367,0.20519231,848.2,847.24,0.79531973]
[1756967949369,0.20519231,848.2,847.25,0.79531973]
[1756967950365,0.20519231,848.2,847.26,0.79531973]
[1756967951366,0.20519231,848.2,847.27,0.79531973]
[1756967952370,0.20519231,848.2,847.28,0.79531973]
[1756967952571,0.20519231,848.2,847.29,0.79531973]
[1756967953267,0.20519231,848.2,847.28,0.79531973]
[1756967953468,0.20519231,848.2,846.88,1.5852815]
[1756967953469,0.20519231,848.2,847.29,0.79531973]
[1756967954474,0.20519231,848.2,847.3,0.79531973]
[1756967955472,0.20519231,848.2,847.31,0.79531973]
[1756967956272,0.20519231,848.2,847.32,0.79531973]
[1756967956772,0.20519231,848.2,847.33,0.79531973]
[1756967957869,0.20519231,848.2,847.39,0.79531973]
[1756967961276,0.20519231,848.2,847.4,0.79531973]
[1756967961871,0.20519231,848.2,847.42,0.79531973]
[1756967963374,0.20519231,848.2,847.43,0.79531973]
[1756967964577,0.20519231,848.2,847.44,0.79531973]
[1756967965178,0.20519231,848.2,847.45,0.79531973]
[1756967965474,0.20519231,848.2,847.46,0.79531973]
[1756967966276,0.20519231,848.2,847.47,0.79531973]
[1756967966983,0.20519231,848.2,847.46,0.79531973]
[1756967967481,0.20519231,848.2,847.32,1.0568543]
[1756967968381,0.20519231,848.2,847.18,1.5852815]
[1756967968677,0.20519231,848.2,846.62,2.6359517]
[1756967968880,0.79342485,848.19,847.49,0.79182434]
[1756967969481,0.79342485,848.18,847.5,0.79182434]
[1756967970276,0.20519231,848.2,847.23,1.5836486]
[1756967970277,0.79342485,848.17,847.51,0.79182434]
[1756967972284,0.79342485,848.16,847.52,0.79182434]
[1756967972484,0.20519231,848.2,847.47,0.79182434]
[1756967972780,0.20519231,848.2,847.45,0.79182434]
[1756967973186,0.20519231,848.2,847.43,0.79182434]
[1756967973383,0.20519231,848.2,847.42,0.79182434]
[1756967974184,0.20519231,848.2,847.41,0.79182434]
[1756967974684,0.20519231,848.2,847.38,0.79182434]
[1756967974880,0.20519231,848.2,847.37,0.79270485]
[1756967976386,0.20519231,848.2,847.38,0.79270485]
[1756967977587,0.20519231,848.2,847.39,0.79270485]
[1756967977887,0.20519231,848.2,847.4,0.79270485]
[1756967979486,0.20519231,848.2,847.41,0.79270485]
[1756967979687,0.20519231,848.2,847.42,0.79270485]
[1756967979886,0.20519231,848.2,847.41,0.79270485]
[1756967980385,0.20519231,848.2,847.16,1.0557657]
[1756967980386,0.20519231,848.2,847.42,0.79270485]
[1756967981286,0.20519231,848.2,847.43,0.79270485]
[1756967983388,0.9995021,848.2,847.43,0.79270485]